bitfinex-derivatives/quotes_BTCF0:USTF0_20260207
["timestamp","ask_amount","ask_price","bid_price","bid_amount"]
[1770471978467,0.58198542,69047.0,69017.0,0.14667853]
[1770471978667,0.58198542,69047.0,69023.0,0.014504]
[1770471978864,0.58198542,69047.0,69023.0,0.16118253]
[1770471979071,0.0002,69064.0,69005.0,0.014508]
[1770471979072,0.43066309,69053.0,69030.0,0.14667853]
[1770471979371,0.43066309,69053.0,69033.0,0.149612]
[1770471979573,0.58198542,69056.0,69033.0,0.149612]
[1770471979772,0.58198542,69056.0,69035.0,0.149612]
[1770471981973,1.01264851,69065.0,69041.0,0.14755287]
[1770471982169,0.0002,69063.0,69041.0,0.14755287]
[1770471982472,0.0002,69063.0,69044.0,0.14755287]
[1770471983064,0.0002,69063.0,69026.0,0.14755287]
[1770471983065,0.58198542,69062.0,69026.0,0.14755287]
[1770471983573,0.58198542,69058.0,69026.0,0.14755287]
[1770471984472,0.58198542,69057.0,69026.0,0.14755287]
[1770471984867,0.43066309,69058.0,69026.0,0.14755287]
[1770471985072,0.58198542,69065.0,69036.0,0.14751914]
[1770471985876,0.58198542,69065.0,69039.0,0.16069213]
[1770471987163,0.58198542,69065.0,69039.0,0.14619113]
[1770471988475,0.58198542,69065.0,69035.0,0.014502]
[1770471989082,0.58198542,69065.0,69035.0,0.15908766]
[1770471989475,0.58198542,69065.0,69035.0,0.14458566]
[1770471990078,0.58198542,69065.0,69052.0,0.14289045]
[1770471991983,0.58198542,69065.0,69045.0,0.1461518]
[1770471992681,0.58198542,69077.0,69046.0,0.27983782]
[1770471993677,0.58198542,69073.0,69046.0,0.27983782]
[1770471994778,0.58198542,69073.0,69052.0,0.14736746]
[1770471994973,0.58198542,69073.0,69045.0,0.1461518]
[1770471995179,0.57712819,69072.0,69045.0,0.1461518]
[1770471995383,0.58198542,69071.0,69045.0,0.1461518]
[1770471996783,0.57712819,69071.0,69045.0,0.1461518]
[1770471996986,0.54253537,69070.0,69045.0,0.1461518]
[1770471998587,0.54253537,69068.0,69045.0,0.1461518]
[1770472000884,0.54253537,69067.0,69045.0,0.1461518]
[1770472002388,0.54253537,69066.0,69045.0,0.1461518]
[1770472007994,0.54253537,69066.0,69046.0,0.27754308]
[1770472008193,0.54253537,69065.0,69045.0,0.1461518]
[1770472008696,0.97430423,69065.0,69045.0,0.1461518]
[1770472008897,0.54253537,69064.0,69045.0,0.1461518]
[1770472009097,0.97430423,69064.0,69045.0,0.1461518]
[1770472009297,0.54253537,69063.0,69045.0,0.1461518]
[1770472009701,0.54253537,69063.0,69046.0,0.28013239]
[1770472009905,0.97430423,69069.0,69046.0,0.28013239]
[1770472010201,0.97430423,69069.0,69053.0,0.28013239]
[1770472010398,1.55143242,69076.0,69053.0,0.28013239]
[1770472010707,0.54253537,69076.0,69053.0,0.28013239]
[1770472015910,0.54253537,69076.0,69052.0,0.14173681]
[1770472016504,0.54253537,69074.0,69052.0,0.14173681]
[1770472017012,0.54253537,69073.0,69052.0,0.14173681]
[1770472017711,0.54253537,69073.0,69045.0,0.1461518]
[1770472017913,0.54253537,69073.0,69039.0,0.29274678]
[1770472018212,0.54253537,69066.0,69039.0,0.29274678]
[1770472018511,0.43176886,69057.0,69039.0,0.29274678]
[1770472019811,0.43176886,69056.0,69039.0,0.29274678]
[1770472021410,0.43176886,69057.0,69043.0,0.14294842]
[1770472023035,0.43176886,69056.0,69043.0,0.14294842]
[1770472023416,0.43176886,69057.0,69043.0,0.14294842]
[1770472024311,0.43176886,69057.0,69043.0,0.11448094]
[1770472025615,0.97430423,69057.0,69043.0,0.11448094]
[1770472026410,0.43176886,69057.0,69044.0,0.42004064]
[1770472028115,0.43176886,69057.0,69043.0,0.11448094]
[1770472029517,0.43176886,69056.0,69043.0,0.11448094]
[1770472030319,0.43176886,69056.0,69043.0,0.0921325]
[1770472030818,0.43176886,69056.0,69043.0,0.46671096]
[1770472031219,0.43176886,69060.0,69043.0,0.46671096]
[1770472031920,0.43176886,69059.0,69043.0,0.46671096]
[1770472032117,0.53674263,69058.0,69043.0,0.0921325]
[1770472032322,0.43176886,69056.0,69043.0,0.0921325]
[1770472032519,0.53674263,69055.0,69043.0,0.0921325]
[1770472032714,0.96851149,69055.0,69043.0,0.0921325]
[1770472033619,0.53674263,69055.0,69043.0,0.0921325]
[1770472033923,0.96851149,69055.0,69043.0,0.0921325]
[1770472035428,0.96851149,69055.0,69050.0,0.34591296]
[1770472035728,0.53674263,69054.0,69050.0,0.34591296]
[1770472036232,0.15408704,69050.0,69043.0,0.00796364]
[1770472036421,0.15408704,69050.0,69043.0,0.00596364]
[1770472040925,0.53674263,69049.0,69036.0,0.1450111]
[1770472041225,0.15408704,69050.0,69016.0,0.005]
[1770472041226,0.53674263,69040.0,69016.0,0.005]
[1770472041621,0.53674263,69040.0,69010.0,0.46070522]
[1770472041821,0.53674263,69040.0,69012.0,0.14728052]
[1770472042120,0.53674263,69040.0,69013.0,0.41170522]
[1770472042521,0.53674263,69040.0,69018.0,0.37721022]
[1770472042731,0.53674263,69040.0,69018.0,0.39171522]
[1770472043028,0.5858559,69050.0,69033.0,0.40051463]
[1770472043227,0.15408704,69050.0,69033.0,0.40051463]
[1770472043728,0.53674263,69049.0,69020.0,0.40575631]
[1770472044524,0.53674263,69049.0,69020.0,0.42026131]
[1770472044829,0.53674263,69049.0,69028.0,0.40575631]
[1770472046025,0.53674263,69049.0,69030.0,0.41165643]
[1770472047732,0.53674263,69049.0,69031.0,0.43346946]
[1770472048032,0.53674263,69049.0,69031.0,0.28417303]
[1770472049230,0.53674263,69049.0,69025.0,0.28417303]
[1770472049432,0.53674263,69049.0,69027.0,0.29381287]
[1770472051224,0.43176886,69045.0,69032.0,0.28885365]
[1770472051624,0.43176886,69046.0,69032.0,0.28885365]
[1770472052032,0.43176886,69047.0,69032.0,0.28885365]
[1770472053332,0.43176886,69048.0,69032.0,0.28885365]
[1770472054532,0.43176886,69047.0,69032.0,0.28885365]
[1770472055938,0.43176886,69047.0,69032.0,0.20016485]
[1770472056937,0.96851149,69048.0,69032.0,0.20016485]
[1770472057435,0.55872993,69047.0,69032.0,0.20016485]
[1770472058143,0.55872993,69044.0,69025.0,0.014504]
[1770472058330,0.55872993,69044.0,69022.0,0.18027405]
[1770472058538,0.57712819,69053.0,69019.0,0.14439423]
[1770472058539,0.55872993,69038.0,69019.0,0.14439423]
[1770472059034,0.55872993,69031.0,69019.0,0.14439423]
[1770472061932,0.55872993,69031.0,69009.0,0.93772]
[1770472062131,0.43176886,69030.0,69009.0,0.93772]
[1770472062330,0.55872993,69029.0,69009.0,0.93772]
[1770472062940,0.55872993,69028.0,69009.0,0.93772]
[1770472063533,0.55872993,69028.0,69000.0,0.952269]
[1770472063736,0.55872993,69028.0,69007.0,0.14270805]
[1770472064135,0.55872993,69028.0,69007.0,0.10268627]
[1770472067945,0.55872993,69028.0,69007.0,0.43656424]
[1770472068146,0.55872993,69028.0,69008.0,0.33387797]
[1770472068337,0.55872993,69028.0,69007.0,0.10268627]
[1770472070039,0.0002,69045.0,69027.0,0.014504]
[1770472070241,0.55872993,69057.0,69031.0,0.014503]
[1770472070439,0.55872993,69057.0,69035.0,0.014502]
[1770472070645,0.55872993,69057.0,69032.0,0.014503]
[1770472071748,0.55872993,69057.0,69024.0,0.83192]
[1770472071749,0.55872993,69057.0,69037.0,0.014501]
[1770472071947,0.55872993,69057.0,69026.0,0.014504]
[1770472078155,0.55872993,69057.0,69020.0,0.014505]
[1770472082052,0.55872993,69057.0,69022.0,0.02693671]
[1770472082258,0.55872993,69057.0,69024.0,0.014504]
[1770472082453,0.55872993,69057.0,69030.0,0.014503]
[1770472082647,0.55872993,69057.0,69030.0,0.02693471]
[1770472083158,0.55872993,69057.0,69030.0,0.01243171]
[1770472085357,0.55872993,69057.0,69039.0,0.014501]
[1770472085560,0.55872993,69057.0,69038.0,0.01334453]
[1770472086253,0.55872993,69057.0,69040.0,0.014501]
[1770472086452,0.55872993,69057.0,69042.0,0.0145]
[1770472086652,0.25692993,69057.0,69042.0,0.0145]
[1770472087057,0.25692993,69057.0,69044.0,0.0145]
[1770472088356,0.25692993,69057.0,69041.0,0.014501]
[1770472089661,0.25692993,69057.0,69035.0,0.014502]
[1770472089962,0.25692993,69057.0,69038.0,0.014501]
[1770472091962,0.25692993,69057.0,69035.0,0.014502]
[1770472093159,0.25692993,69057.0,69030.0,0.30384975]
[1770472093359,0.25692993,69057.0,69027.0,0.014504]
[1770472093561,0.25692993,69057.0,69029.0,0.014503]
[1770472094065,0.25692993,69057.0,69018.0,0.014505]
[1770472095167,0.25692993,69057.0,69015.0,0.31622547]
[1770472095358,0.25692993,69057.0,69009.0,0.014507]
[1770472095554,0.25692993,69057.0,69008.0,0.31332651]
[1770472095966,0.25692993,69057.0,69008.0,0.32783451]
[1770472098565,0.72227081,69063.0,69008.0,0.31153514]
[1770472098566,0.56223224,69049.0,69008.0,0.31153514]
[1770472104163,0.56223224,69049.0,69007.0,0.10268627]
[1770472105772,0.56223224,69049.0,69008.0,0.32444848]
[1770472107973,0.56223224,69049.0,69008.0,0.3267283]
[1770472108861,0.56223224,69049.0,69010.0,0.5]
[1770472109966,0.56223224,69049.0,69008.0,0.3267283]
[1770472110572,0.56223224,69047.0,69007.0,0.10268627]
[1770472113373,0.56323224,69047.0,69007.0,0.10268627]
[1770472113879,0.56323224,69047.0,69008.0,0.31480107]
[1770472114574,0.56223224,69047.0,69008.0,0.31480107]
[1770472116872,0.56223224,69047.0,69012.0,0.31495436]
[1770472121976,0.56223224,69047.0,69007.0,0.10268627]
[1770472122374,0.56453609,69046.0,69007.0,0.43852979]
[1770472122576,0.56453609,69046.0,69008.0,0.33584352]
[1770472123174,0.56453609,69046.0,69012.0,0.33584352]
[1770472126482,0.56453609,69046.0,69007.0,0.10268627]
[1770472126683,0.56453609,69046.0,69007.0,0.42696407]
[1770472126884,0.56453609,69046.0,69008.0,0.3242778]
[1770472127077,0.56453609,69042.0,69008.0,0.3242778]
[1770472128485,0.56453609,69041.0,69008.0,0.3242778]
[1770472133185,0.57850767,69033.0,69008.0,0.3242778]
[1770472133486,0.56453609,69032.0,69008.0,0.3242778]
[1770472134985,0.56453609,69032.0,69008.0,0.3387858]
[1770472135481,0.56453609,69032.0,69008.0,0.3242778]
[1770472135786,0.57850767,69033.0,69011.0,0.33532922]
[1770472136386,1.14304376,69034.0,69011.0,0.33532922]
[1770472138088,0.57850767,69033.0,69011.0,0.33532922]
[1770472139182,1.14304376,69033.0,69011.0,0.33532922]
[1770472140591,0.57850767,69032.0,69011.0,0.33532922]
[1770472141984,0.56453609,69031.0,69011.0,0.33532922]
[1770472142898,0.56453609,69031.0,69007.0,0.10268627]
[1770472143085,0.56453609,69031.0,69007.0,0.4378095]
[1770472144592,0.56453609,69030.0,69007.0,0.4378095]
[1770472144794,0.56453609,69030.0,69008.0,0.32733662]
[1770472147091,0.56453609,69030.0,69008.0,0.34184462]
[1770472148694,0.56453609,69030.0,69007.0,0.10268627]
[1770472148695,0.57487251,69036.0,69011.0,0.31939235]
[1770472148897,0.57850767,69037.0,69017.0,0.31939235]
[1770472149096,0.57487251,69036.0,69008.0,0.33390035]
[1770472149694,0.57487251,69036.0,69008.0,0.31939235]
[1770472155400,0.57487251,69036.0,69008.0,0.33390035]
[1770472156192,0.57487251,69036.0,69011.0,0.32272166]
[1770472157297,0.57487251,69036.0,69007.0,0.10268627]
[1770472157298,0.57850767,69040.0,69013.0,0.31981012]
[1770472157495,0.56621554,69040.0,69013.0,0.31981012]
[1770472158400,0.56621554,69040.0,69015.0,0.31981012]
[1770472159197,0.57850767,69039.0,69015.0,0.31981012]
[1770472159498,0.56621554,69038.0,69008.0,0.33771297]
[1770472160003,0.56621554,69033.0,69008.0,0.33771297]
[1770472161404,0.56621554,69033.0,69009.0,0.3524098]
[1770472163505,0.56621554,69033.0,69009.0,0.3379028]
[1770472164896,0.56621554,69032.0,69009.0,0.3379028]
[1770472165398,0.56621554,69032.0,69007.0,0.10268627]
[1770472165799,0.56621554,69032.0,69007.0,0.43721093]
[1770472166501,0.56621554,69032.0,69008.0,0.33452466]
[1770472166704,0.56621554,69040.0,69019.0,0.33452466]
[1770472167002,0.85637102,69051.0,69032.0,0.33452466]
[1770472167003,0.56621554,69048.0,69032.0,0.33452466]
[1770472167602,0.56621554,69048.0,69016.0,0.014506]
[1770472167603,0.4334279,69057.0,69034.0,0.33033486]
[1770472167910,0.56621554,69056.0,69034.0,0.33033486]
[1770472169001,0.56621554,69056.0,69036.0,0.33033486]
[1770472170203,0.56621554,69063.0,69036.0,0.33033486]
[1770472170403,0.56621554,69063.0,69037.0,0.014502]
[1770472170710,0.56621554,69063.0,69038.0,0.33752055]
[1770472170909,0.56621554,69063.0,69022.0,0.014505]
[1770472170910,0.57850767,69078.0,69039.0,0.014501]
[1770472171110,0.58333333,69080.0,69060.0,0.014497]
[1770472171310,0.67924068,69088.0,69063.0,0.014496]
[1770472171505,0.67924068,69088.0,69062.0,0.014496]
[1770472171708,0.09590735,69087.0,69086.0,0.14206676]
[1770472172009,1.0034972,69130.0,69086.0,0.14206676]
[1770472172010,0.58333333,69111.0,69086.0,0.14206676]
[1770472172406,0.0002,69110.0,69086.0,0.14206676]
[1770472172916,0.0002,69109.0,69086.0,0.14206676]
[1770472173111,0.58333333,69109.0,69086.0,0.14206676]
[1770472173311,0.0002,69108.0,69087.0,0.01562083]
[1770472173512,0.57812638,69118.0,69087.0,0.01562083]
[1770472173812,0.57812638,69116.0,69087.0,0.01562083]
[1770472174207,0.57812638,69114.0,69087.0,0.01562083]
[1770472174608,0.57812638,69112.0,69087.0,0.01562083]
[1770472175009,0.57812638,69110.0,69087.0,0.01562083]
[1770472175414,0.58333333,69108.0,69087.0,0.01562083]
[1770472175611,0.58353333,69107.0,69087.0,0.01562083]
[1770472175818,0.58333333,69107.0,69087.0,0.01562083]
[1770472176018,0.0002,69106.0,69087.0,0.01562083]
[1770472176406,0.0002,69105.0,69087.0,0.01562083]
[1770472176603,0.0002,69106.0,69087.0,0.01562083]
[1770472177019,0.0002,69097.0,69087.0,0.01562083]
[1770472177212,0.58333333,69107.0,69087.0,0.01562083]
[1770472177213,0.0002,69106.0,69087.0,0.01562083]
[1770472177713,0.0002,69093.0,69087.0,0.01562083]
[1770472178310,0.0002,69106.0,69087.0,0.01562083]
[1770472178513,0.0002,69094.0,69087.0,0.01562083]
[1770472179510,0.58333333,69105.0,69087.0,0.01562083]
[1770472179713,0.0002,69092.0,69087.0,0.01562083]
[1770472179921,0.0002,69104.0,69087.0,0.01562083]
[1770472180103,0.0002,69092.0,69087.0,0.01562083]
[1770472180507,0.0002,69103.0,69087.0,0.01562083]
[1770472180708,0.58333333,69101.0,69086.0,0.14206676]
[1770472180912,0.0002,69087.0,69086.0,0.14206676]
[1770472181114,0.0002,69087.0,69079.0,0.15783468]
[1770472181313,0.58393333,69100.0,69079.0,0.15783468]
[1770472181515,0.0008,69099.0,69079.0,0.15783468]
[1770472181706,0.0002,69092.0,69079.0,0.15783468]
[1770472181911,0.0002,69092.0,69086.0,0.14198375]
[1770472182109,0.0002,69088.0,69086.0,0.14198375]
[1770472182312,0.0008,69099.0,69086.0,0.14198375]
[1770472182713,0.0002,69094.0,69086.0,0.14198375]
[1770472183111,0.0008,69093.0,69086.0,0.14198375]
[1770472183418,0.0002,69091.0,69086.0,0.14198375]
[1770472183714,0.58413333,69087.0,69079.0,0.00317131]
[1770472183922,0.58333333,69087.0,69079.0,0.00317131]
[1770472184114,0.0008,69086.0,69079.0,0.00317131]
[1770472184714,0.0008,69085.0,69079.0,0.00317131]
[1770472184918,0.0008,69086.0,69071.0,0.014494]
[1770472185416,0.0008,69085.0,69071.0,0.014494]
[1770472185618,0.0008,69086.0,69071.0,0.014494]
[1770472186018,0.0008,69085.0,69080.0,0.14519424]
[1770472186220,0.58333333,69092.0,69073.0,0.14783124]
[1770472186607,0.58333333,69090.0,69073.0,0.14783124]
[1770472187012,0.0008,69089.0,69073.0,0.14783124]
[1770472188716,0.58333333,69090.0,69073.0,0.14783124]
[1770472189110,0.0008,69089.0,69073.0,0.14783124]
[1770472189307,0.58413333,69089.0,69073.0,0.14783124]
[1770472189512,0.58333333,69087.0,69073.0,0.14783124]
[1770472190025,0.0008,69086.0,69073.0,0.14783124]
[1770472190409,0.58333333,69101.0,69073.0,0.14783124]
[1770472190913,0.58333333,69101.0,69080.0,0.14845586]
[1770472191113,0.58333333,69101.0,69082.0,0.014492]
[1770472191520,0.58333333,69101.0,69080.0,0.14845586]
[1770472191717,0.58333333,69108.0,69081.0,0.014492]
[1770472192515,0.58333333,69108.0,69080.0,0.14845586]
[1770472192720,0.58333333,69093.0,69073.0,0.14783124]
[1770472193016,0.58333333,69093.0,69055.0,0.15188292]
[1770472193017,0.083,69074.0,69055.0,0.15188292]
[1770472193413,0.083,69074.0,69066.0,0.14541207]
[1770472193813,0.54410415,69077.0,69066.0,0.06241207]
[1770472194119,0.54410415,69077.0,69059.0,0.12512847]
[1770472196218,0.54410415,69077.0,69055.0,0.15188292]
[1770472196523,0.54410415,69077.0,69060.0,0.12138989]
[1770472196922,0.54410415,69077.0,69061.0,0.13588589]
[1770472197919,0.54410415,69077.0,69061.0,0.12138989]
[1770472199418,0.54410415,69077.0,69060.0,0.14475802]
[1770472200522,0.54410415,69077.0,69061.0,0.0923081]
[1770472201925,0.54410415,69077.0,69060.0,0.14475802]
[1770472202128,0.54410415,69077.0,69054.0,0.014498]
[1770472202423,0.54410415,69077.0,69054.0,0.12749377]
[1770472202625,0.54410415,69077.0,69053.0,0.14264201]
[1770472202626,0.54410415,69077.0,69057.0,0.12749277]
[1770472203422,0.54410415,69077.0,69060.0,0.25032892]
[1770472205924,0.54410415,69077.0,69061.0,0.014496]
[1770472206119,0.54410415,69077.0,69060.0,0.25032892]
[1770472206321,0.54410415,69077.0,69060.0,0.26482592]
[1770472207330,0.54410415,69077.0,69060.0,0.25032892]
[1770472209031,0.54410415,69077.0,69060.0,0.14326522]
[1770472211124,0.54410415,69077.0,69061.0,0.10338765]
[1770472211321,0.55627242,69089.0,69061.0,0.10338765]
[1770472211528,0.55627242,69089.0,69073.0,0.014494]
[1770472212536,0.55627242,69089.0,69073.0,0.12011681]
[1770472213034,0.55627242,69109.0,69073.0,0.12011681]
[1770472213331,0.55627242,69109.0,69088.0,0.10581414]
[1770472213332,0.55327242,69109.0,69088.0,0.10581414]
[1770472213528,0.0002,69099.0,69088.0,0.12030514]
[1770472214032,0.55327242,69109.0,69088.0,0.12030514]
[1770472214234,0.72227081,69124.0,69099.0,0.10861414]
[1770472214530,0.55627242,69131.0,69085.0,0.014491]
[1770472214531,0.55627242,69131.0,69107.0,0.12310114]
[1770472215328,0.55627242,69131.0,69112.0,0.014486]
[1770472216932,0.55627242,69131.0,69114.0,0.014485]
[1770472217537,0.25607242,69131.0,69114.0,0.014485]
[1770472217735,0.25607242,69131.0,69117.0,0.014485]
[1770472217940,0.25607242,69131.0,69120.0,0.014484]
[1770472218141,0.55627242,69156.0,69126.0,0.14121307]
[1770472218431,0.55627242,69156.0,69126.0,0.6105779]
[1770472218637,0.55627242,69156.0,69127.0,0.45488183]
[1770472222730,0.55627242,69156.0,69119.0,0.14138681]
[1770472222932,0.55627242,69156.0,69106.0,0.56321059]
[1770472223330,0.2057172,69107.0,69096.0,0.58728983]
[1770472223532,0.55627242,69121.0,69096.0,0.58728983]
[1770472223833,0.55627242,69119.0,69096.0,0.57280083]
[1770472224239,0.55627242,69117.0,69096.0,0.14165523]
[1770472224435,0.55627242,69115.0,69089.0,0.57280083]
[1770472224736,0.55627242,69115.0,69101.0,0.1454543]
[1770472224938,0.55627242,69113.0,69101.0,0.1454543]
[1770472225130,0.55627242,69113.0,69089.0,0.57280083]
[1770472225442,0.55627242,69111.0,69089.0,0.57280083]
[1770472225938,0.2057172,69110.0,69089.0,0.57280083]
[1770472226340,0.2057172,69109.0,69089.0,0.57280083]
[1770472226539,0.2057172,69110.0,69095.0,0.71516778]
[1770472226740,0.55627242,69119.0,69096.0,0.014489]
[1770472226942,0.2057172,69118.0,69100.0,0.58728883]
[1770472227135,0.55627242,69125.0,69103.0,0.58728883]
[1770472227340,0.2057172,69124.0,69105.0,0.58728783]
[1770472227739,0.2057172,69123.0,69108.0,0.014487]
[1770472228042,0.2057172,69124.0,69108.0,0.014487]
[1770472228537,0.0602629,69123.0,69108.0,0.58728783]
[1770472228737,0.61653532,69131.0,69096.0,0.57280083]
[1770472228937,0.55627242,69131.0,69102.0,0.58728883]
[1770472229134,0.55627242,69129.0,69102.0,0.58728883]
[1770472229534,0.55627242,69127.0,69102.0,0.58728883]
[1770472229733,0.55627242,69127.0,69104.0,0.57280083]
[1770472229938,0.0602629,69126.0,69104.0,0.57280083]
[1770472230139,0.55627242,69133.0,69104.0,0.58728783]
[1770472230339,0.61653532,69132.0,69107.0,0.58728783]
[1770472230539,0.0602629,69131.0,69122.0,0.014484]
[1770472230848,0.55627242,69141.0,69122.0,0.58728483]
[1770472231038,0.0602629,69140.0,69122.0,0.58728483]
[1770472231244,0.55627242,69149.0,69122.0,0.58728483]
[1770472231443,0.61653532,69148.0,69122.0,0.58728483]
[1770472231640,0.55627242,69148.0,69122.0,0.57280083]
[1770472231841,0.61653532,69147.0,69122.0,0.57280083]
[1770472232041,0.55627242,69147.0,69122.0,0.57280083]
[1770472232341,0.61653532,69146.0,69122.0,0.57280083]
[1770472232644,0.55627242,69146.0,69122.0,0.57280083]
[1770472232843,0.61653532,69145.0,69122.0,0.57280083]
[1770472233045,0.55627242,69145.0,69122.0,0.57280083]
[1770472233245,0.0602629,69144.0,69122.0,0.57280083]
[1770472233637,0.0602629,69143.0,69122.0,0.57280083]
[1770472233838,0.55627242,69143.0,69122.0,0.57280083]
[1770472234038,0.55627242,69143.0,69122.0,0.58728483]
[1770472234039,0.0602629,69142.0,69122.0,0.58728483]
[1770472234641,0.0602629,69141.0,69122.0,0.58728483]
[1770472234847,0.0602629,69142.0,69122.0,0.58728483]
[1770472235038,0.0602629,69142.0,69124.0,0.58728383]
[1770472235239,0.0602629,69141.0,69124.0,0.58728383]
[1770472235544,0.0602629,69142.0,69124.0,0.58728383]
[1770472235943,0.0602629,69141.0,69124.0,0.58728383]
[1770472236140,0.55627242,69151.0,69124.0,0.57280083]
[1770472236341,0.56345219,69149.0,69124.0,0.57280083]
[1770472236536,0.56345219,69149.0,69118.0,0.014485]
[1770472236742,0.56345219,69147.0,69118.0,0.014485]
[1770472237143,0.56345219,69145.0,69117.0,0.54197366]
[1770472237544,0.56345219,69143.0,69117.0,0.54197366]
[1770472237940,0.56345219,69141.0,69117.0,0.54197366]
[1770472238343,0.56345219,69132.0,69099.0,0.54197366]
[1770472238542,0.3493,69118.0,69101.0,0.54197366]
[1770472238748,0.3493,69112.0,69101.0,0.54197366]
[1770472239049,0.92517219,69118.0,69095.0,0.53201988]
[1770472239246,0.36172,69117.0,69095.0,0.53201988]
[1770472239441,0.56345219,69118.0,69116.0,0.13008993]
[1770472239646,0.36172,69117.0,69116.0,0.13008993]
[1770472240041,0.36172,69117.0,69116.0,0.10666207]
[1770472240349,0.36172,69117.0,69095.0,0.53201988]
[1770472240546,0.36172,69116.0,69095.0,0.53201988]
[1770472240848,0.36172,69117.0,69095.0,0.53201988]
[1770472241349,0.36172,69116.0,69095.0,0.53201988]
[1770472241547,0.36172,69117.0,69095.0,0.53201988]
[1770472241742,0.36172,69110.0,69087.0,0.54197366]
[1770472241947,0.1453,69157.0,69058.0,0.21752658]
[1770472241948,0.56345219,69109.0,69073.0,0.54197366]
[1770472242347,0.14686773,69120.0,69073.0,0.54197366]
[1770472242348,0.56345219,69107.0,69073.0,0.54197366]
[1770472242645,0.56345219,69107.0,69080.0,0.1474251]
[1770472242848,0.56345219,69105.0,69080.0,0.1474251]
[1770472243048,0.56345219,69105.0,69069.0,0.014495]
[1770472243251,0.56345219,69103.0,69082.0,0.68758386]
[1770472243449,0.56345219,69103.0,69082.0,0.70207586]
[1770472243646,0.36172,69102.0,69083.0,0.54197366]
[1770472243848,0.56345219,69101.0,69082.0,0.1456102]
[1770472244049,0.92517219,69101.0,69082.0,0.1456102]
[1770472244245,0.36172,69100.0,69082.0,0.1456102]
[1770472244447,0.56345219,69128.0,69093.0,0.54197366]
[1770472244754,0.56345219,69128.0,69101.0,0.014488]
[1770472244953,0.56345219,69128.0,69097.0,0.55646266]
[1770472245448,0.56345219,69128.0,69101.0,0.014488]
[1770472247446,0.56345219,69128.0,69104.0,0.014487]
[1770472248048,0.56345219,69128.0,69100.0,0.014488]
[1770472248251,0.56345219,69128.0,69100.0,0.55291122]
[1770472249357,0.56345219,69128.0,69092.0,0.55202972]
[1770472249752,0.56345219,69128.0,69092.0,0.53753972]
[1770472249957,0.56345219,69128.0,69088.0,0.014491]
[1770472250159,0.56345219,69128.0,69084.0,0.55203172]
[1770472251262,0.56345219,69128.0,69092.0,0.001]
[1770472251956,0.56345219,69128.0,69082.0,0.1456102]
[1770472253049,0.0478429,69089.0,69082.0,0.1456102]
[1770472253245,0.02441504,69089.0,69082.0,0.1456102]
[1770472254160,0.02441504,69089.0,69075.0,0.16040746]
[1770472254352,0.02441504,69089.0,69077.0,0.014493]
[1770472254756,0.56345219,69096.0,69077.0,0.014493]
[1770472256063,0.56345219,69096.0,69075.0,0.14591446]
[1770472257360,0.56345219,69096.0,69082.0,0.14718094]
[1770472259962,0.56345219,69096.0,69058.0,0.54209544]
[1770472260165,0.56345219,69082.0,69058.0,0.00012178]
[1770472261667,0.56345219,69082.0,69058.0,0.00112178]
[1770472263170,0.56345219,69082.0,69058.0,0.00012178]
[1770472264176,0.56345219,69082.0,69059.0,0.1463379]
[1770472264475,0.56345219,69082.0,69058.0,0.00012178]
[1770472267367,0.56345219,69082.0,69059.0,0.55234844]
[1770472267571,0.53024648,69099.0,69068.0,0.014495]
[1770472267974,0.53024648,69099.0,69067.0,0.014495]
[1770472268180,0.53024648,69091.0,69069.0,0.014495]
[1770472268870,0.53024648,69091.0,69066.0,0.014495]
[1770472269367,0.53024648,69091.0,69068.0,0.014495]
[1770472269575,0.53024648,69091.0,69070.0,0.014495]
[1770472269976,0.53024648,69091.0,69067.0,0.014495]
[1770472270483,0.53515407,69119.0,69075.0,0.57004011]
[1770472271488,0.53515407,69119.0,69077.0,0.55554611]
[1770472272384,0.53515407,69119.0,69079.0,0.014493]
[1770472273181,0.53515407,69119.0,69081.0,0.014492]
[1770472275086,0.53515407,69119.0,69078.0,0.014493]
[1770472275383,0.53515407,69119.0,69082.0,0.014492]
[1770472275585,0.53515407,69119.0,69084.0,0.014492]
[1770472277386,0.53515407,69119.0,69086.0,0.014491]
[1770472277986,0.53515407,69119.0,69073.0,0.55554611]
[1770472278390,0.53515407,69119.0,69074.0,0.014494]
[1770472278590,0.53515407,69119.0,69073.0,0.55554611]
[1770472278891,0.53515407,69119.0,69073.0,0.57004011]
[1770472279094,0.53515407,69119.0,69075.0,0.014494]
[1770472279994,0.53515407,69119.0,69067.0,0.014495]
[1770472280195,0.53515407,69119.0,69065.0,0.55554611]
[1770472280196,0.53515407,69119.0,69068.0,0.014495]
[1770472280395,0.53515407,69119.0,69065.0,0.57004211]
[1770472280689,0.53515407,69117.0,69067.0,0.014495]
[1770472280882,0.53515407,69117.0,69069.0,0.014495]
[1770472281081,0.53515407,69117.0,69071.0,0.014494]
[1770472281488,0.53515407,69117.0,69068.0,0.57004111]
[1770472281684,0.53515407,69117.0,69070.0,0.014495]
[1770472281988,0.53515407,69117.0,69077.0,0.55554611]
[1770472282187,0.53515407,69117.0,69080.0,0.55554611]
[1770472283396,0.53515407,69117.0,69080.0,0.57003811]
[1770472284599,0.53515407,69117.0,69074.0,0.014494]
[1770472284794,0.53515407,69117.0,69074.0,0.57004011]
[1770472285098,0.53515407,69117.0,69076.0,0.014493]
[1770472285290,0.53515407,69117.0,69080.0,0.014493]
[1770472285484,0.53515407,69117.0,69082.0,0.014492]
[1770472288202,0.53515407,69117.0,69080.0,0.55554611]
[1770472288893,0.53515407,69117.0,69081.0,0.014492]
[1770472289796,0.53515407,69117.0,69083.0,0.014492]
[1770472290002,0.53515407,69117.0,69080.0,0.57003811]
[1770472290598,0.53515407,69117.0,69082.0,0.014492]
[1770472291096,0.53515407,69117.0,69082.0,0.57003811]
[1770472291494,0.53515407,69117.0,69088.0,0.014491]
[1770472291694,0.53515407,69117.0,69088.0,0.57003711]
[1770472292990,0.53515407,69117.0,69091.0,0.01449]
[1770472293195,0.53515407,69117.0,69093.0,0.01449]
[1770472293999,0.53515407,69117.0,69091.0,0.55554611]
[1770472296307,0.53515407,69117.0,69091.0,0.55654611]
[1770472296701,0.53515407,69117.0,69091.0,0.001]
[1770472297006,0.53515407,69117.0,69088.0,0.55174692]
[1770472297205,0.53515407,69117.0,69091.0,0.001]
[1770472299009,0.53515407,69117.0,69089.0,0.01449]
[1770472299308,0.53515407,69117.0,69091.0,0.55174692]
[1770472299509,0.53515407,69117.0,69091.0,0.56623692]
[1770472300110,0.53515407,69117.0,69075.0,0.014493]
[1770472300111,0.53515407,69117.0,69076.0,0.55174692]
[1770472300312,0.53515407,69117.0,69087.0,0.55174692]
[1770472303118,0.53515407,69117.0,69089.0,0.55174692]
[1770472306409,0.53515407,69117.0,69089.0,0.56623792]
[1770472306718,0.53515407,69117.0,69089.0,0.55174692]
[1770472310123,0.53515407,69117.0,69068.0,0.55174692]